fUST/lending_fUST_20241110
["ID","MTS","AMOUNT","RATE_DAILY","PERIOD"]
[341756041,1731209442386,-280.39,0.000315,31]
[341756042,1731209442395,-280.39,0.000315,31]
[341756043,1731209442404,-280.39,0.000315,31]
[341756044,1731209442412,-280.39,0.000315,31]
[341756045,1731209442422,-280.39,0.000315,31]
[341756046,1731209442431,-280.39,0.000315,31]
[341756047,1731209442439,-280.39,0.000315,31]
[341756048,1731209442449,-280.39,0.000315,31]
[341756049,1731209442458,-460.55735383,0.00031506,2]
[341756050,1731209442467,-1998.54,0.00031506,2]
[341756051,1731209442476,-1271.12,0.00031506,2]
[341756052,1731209442485,-500.0,0.00031506,2]
[341756053,1731209442497,-903.53,0.00031506,2]
[341756054,1731209442511,-297.6054,0.00031506,2]
[341756055,1731209442525,-1408.78,0.00031506,2]
[341756056,1731209442537,-696.04,0.00031506,2]
[341756057,1731209442551,-1001.35,0.00031506,2]
[341756058,1731209442562,-500.0,0.00031506,120]
[341756059,1731209442573,-1000.0,0.00031542,5]
[341756060,1731209442584,-500.0,0.00031542,2]
[341756061,1731209442596,-1000.0,0.00031542,5]
[341756062,1731209442608,-721.76789194,0.00031542,5]
[341756063,1731209442619,-163.126147,0.00031546,2]
[341756064,1731209442630,-500.0,0.00031573,2]
[341756065,1731209442642,-505.12610231,0.00031574,2]
[341756066,1731209442655,-438.01200611,0.00031574,2]
[341756067,1731209442666,-509.58496845,0.00031574,2]
[341756068,1731209442678,-256.86567382,0.00031581,2]
[341756069,1731209442691,-2500.0,0.00031582,3]
[341756070,1731209442704,-352.33089245,0.00031583,2]
[341756071,1731209442716,-1803.29805693,0.00031583,2]
[341756072,1731209442727,-500.0,0.0003159,2]
[341756073,1731209442738,-502.63990946,0.0003159,2]
[341756074,1731209442750,-508.72749282,0.0003159,2]
[341756075,1731209442761,-500.0,0.0003159,2]
[341756076,1731209442774,-503.8118111,0.0003159,2]
[341756077,1731209442785,-530.27047227,0.0003159,2]
[341756078,1731209442797,-502.95133685,0.0003159,2]
[341756079,1731209442808,-527.79139374,0.0003159,2]
[341756080,1731209442822,-500.0,0.0003159,2]
[341756081,1731209442832,-610.47796792,0.0003159,2]
[341756082,1731209442842,-2500.0,0.00031591,3]
[341756083,1731209442854,-8222.195061,0.000316,2]
[341756084,1731209442865,-6248.39279865,0.000316,2]
[341756085,1731209442877,-2500.0,0.000316,3]
[341756086,1731209442890,-474.523067,0.000316,3]
[341756087,1731209442901,-500.0,0.000316,36]
[341756088,1731209442913,-16136.06056194,0.000316,2]
[341756089,1731209442927,-5000.0,0.00031641,32]
[341756090,1731209442939,-151.0,0.00031671,7]
[341756091,1731209442952,-153.0,0.00031671,30]
[341756094,1731209442964,-153.0,0.00031671,30]
[341756096,1731209442975,-153.0,0.00031671,30]
[341756098,1731209442987,-153.0,0.00031671,30]
[341756100,1731209442998,-211.4889689,0.00031671,30]
[341756102,1731209443008,-211.4889689,0.00031671,30]
[341756104,1731209443018,-211.4889689,0.00031671,30]
[341756105,1731209443027,-211.4889689,0.00031671,30]
[341756106,1731209443038,-211.4889689,0.00031671,30]
[341756107,1731209443049,-211.4889689,0.00031671,30]
[341756108,1731209443060,-211.4889689,0.00031671,30]
[341756109,1731209443074,-211.4889689,0.00031671,30]
[341756110,1731209443085,-211.4889689,0.00031671,30]
[341756111,1731209443096,-211.4889689,0.00031671,30]
[341756112,1731209443106,-211.4889689,0.00031671,30]
[341756113,1731209443116,-211.4889689,0.00031671,30]
[341756114,1731209443128,-211.4889689,0.00031671,30]
[341756116,1731209443138,-211.4889689,0.00031671,30]
[341756119,1731209443148,-153.0,0.00031671,30]
[341756122,1731209443160,-153.0,0.00031671,30]
[341756124,1731209443172,-211.4889689,0.00031671,30]
[341756125,1731209443182,-153.0,0.00031671,30]
[341756126,1731209443192,-153.0,0.00031671,30]
[341756127,1731209443202,-211.4889689,0.00031671,30]
[341756128,1731209443212,-153.0,0.00031671,30]
[341756129,1731209443223,-211.4889689,0.00031671,30]
[341756130,1731209443233,-153.0,0.00031671,30]
[341756131,1731209443243,-153.0,0.00031671,30]
[341756132,1731209443253,-211.4889689,0.00031671,30]
[341756133,1731209443264,-153.0,0.00031671,30]
[341756134,1731209443274,-153.0,0.00031671,30]
[341756135,1731209443284,-153.0,0.00031671,30]
[341756136,1731209443296,-211.4889689,0.00031671,30]
[341756137,1731209443307,-153.0,0.00031671,30]
[341756138,1731209443326,-153.0,0.00031671,30]
[341756140,1731209443337,-153.0,0.00031671,30]
[341756142,1731209443347,-211.4889689,0.00031671,30]
[341756143,1731209443357,-153.0,0.00031671,30]
[341756145,1731209443367,-153.0,0.00031671,30]
[341756146,1731209443377,-211.4889689,0.00031671,30]
[341756147,1731209443387,-211.4889689,0.00031671,30]
[341756148,1731209443397,-153.0,0.00031671,30]
[341756149,1731209443408,-211.4889689,0.00031671,30]
[341756150,1731209443418,-211.4889689,0.00031671,30]
[341756151,1731209443429,-211.4889689,0.00031671,30]
[341756152,1731209443439,-211.4889689,0.00031671,30]
[341756153,1731209443450,-211.4889689,0.00031671,30]
[341756154,1731209443460,-211.4889689,0.00031671,30]
[341756155,1731209443470,-211.4889689,0.00031671,30]
[341756156,1731209443480,-211.4889689,0.00031671,30]
[341756157,1731209443491,-211.4889689,0.00031671,30]
[341756158,1731209443504,-211.4889689,0.00031671,30]
[341756159,1731209443515,-211.4889689,0.00031671,30]
[341756160,1731209443525,-211.4889689,0.00031671,30]
[341756161,1731209443536,-306.0,0.00031671,30]
[341756162,1731209443547,-209.6324254,0.00031671,30]
[341756163,1731209443557,-306.7955483,0.00031671,30]
[341756165,1731209443572,-211.4359248,0.00031671,30]
[341756166,1731209443583,-153.0,0.00031671,30]
[341756168,1731209443594,-153.0,0.00031671,30]
[341756170,1731209443605,-323.2958926,0.00031671,30]
[341756172,1731209443615,-153.0,0.00031671,30]
[341756174,1731209443626,-153.0,0.00031671,30]
[341756176,1731209443637,-303.6262634,0.00031671,30]
[341756177,1731209443647,-153.0,0.00031671,30]
[341756178,1731209443658,-153.0,0.00031671,30]
[341756179,1731209443669,-153.0,0.00031671,30]
[341756180,1731209443680,-301.630352,0.00031671,30]
[341756181,1731209443691,-500.0,0.00031673,5]
[341756182,1731209443812,-500.0,0.00031673,5]
[341756183,1731209443821,-500.83954123,0.00031673,5]
[341756184,1731209443831,-500.0,0.00031673,5]
[341756185,1731209443840,-500.0,0.00031673,5]
[341756186,1731209443849,-500.0,0.00031673,5]
[341756187,1731209443858,-16513.36350006,0.00031673,2]
[341756188,1731209443867,-151.0,0.00031673,7]
[341756189,1731209443877,-298.831354,0.00031673,7]
[341756190,1731209443886,-1001.0489,0.0003168,2]
[341756191,1731209443895,-151.0,0.00031681,7]
[341756192,1731209443904,-151.0,0.00031681,7]
[341756193,1731209443913,-151.0,0.00031681,7]
[341756194,1731209443922,-193.748941,0.00031681,7]
[341756195,1731209443931,-152.883535,0.00031681,7]
[341756196,1731209443940,-152.532072,0.00031681,7]
[341756197,1731209443950,-151.0,0.00031681,7]
[341756198,1731209443960,-151.0,0.00031681,7]
[341756199,1731209443969,-151.0,0.00031681,7]
[341756200,1731209443978,-151.0,0.00031681,7]
[341756201,1731209443988,-151.0,0.00031681,7]
[341756202,1731209443997,-151.0,0.00031681,7]
[341756203,1731209444006,-151.0,0.00031681,7]
[341756204,1731209444015,-151.0,0.00031681,7]
[341756205,1731209444023,-151.0,0.00031681,7]
[341756206,1731209444033,-151.0,0.00031681,7]
[341756207,1731209444042,-151.0,0.00031681,7]
[341756208,1731209444051,-151.0,0.00031681,7]
[341756209,1731209444060,-151.0,0.00031681,7]
[341756210,1731209444071,-151.0,0.00031681,7]
[341756211,1731209444080,-151.0,0.00031681,7]
[341756212,1731209444092,-151.0,0.00031681,7]
[341756213,1731209444102,-151.0,0.00031681,7]
[341756214,1731209444111,-151.0,0.00031681,7]
[341756215,1731209444121,-173.378786,0.00031681,7]
[341756216,1731209444130,-151.0,0.00031681,3]
[341756217,1731209444139,-151.0,0.00031681,3]
[341756218,1731209444149,-151.0,0.00031681,3]
[341756219,1731209444158,-151.0,0.00031681,3]
[341756220,1731209444167,-151.0,0.00031681,3]
[341756221,1731209444176,-263.774245,0.00031681,3]
[341756222,1731209444186,-153.601071,0.00031681,7]
[341756223,1731209444195,-473.77772423,0.00031681,2]
[341756224,1731209444204,-256.5164543,0.00031681,2]
[341756225,1731209444214,-647.20888139,0.00031681,2]
[341756226,1731209444223,-500.0,0.00031681,2]
[341756227,1731209444232,-500.0,0.00031681,2]
[341756228,1731209444241,-286.45918348,0.00031681,2]
[341756229,1731209444251,-366.02942455,0.00031681,2]
[341756230,1731209444260,-500.0,0.00031681,2]
[341756231,1731209444268,-500.0,0.00031681,2]
[341756232,1731209444278,-500.0,0.00031681,2]
[341756233,1731209444287,-500.0,0.00031681,2]
[341756234,1731209444296,-500.0,0.00031681,2]
[341756235,1731209444305,-500.0,0.00031681,2]
[341756236,1731209444316,-500.0,0.00031681,2]
[341756237,1731209444326,-500.0,0.00031681,2]
[341756238,1731209444335,-384.10101113,0.00031682,2]
[341756239,1731209444344,-335.23287432,0.00031682,2]
[341756240,1731209444353,-153.083267,0.00031682,7]
[341756241,1731209444362,-150.89420809,0.00031682,10]
[341756242,1731209444372,-471.18795768,0.00031682,28]
[341756243,1731209444381,-151.0,0.00031682,7]
[341756244,1731209444390,-151.0,0.00031682,7]
[341756245,1731209444400,-151.0,0.00031682,7]
[341756246,1731209444410,-151.0,0.00031682,7]
[341756247,1731209444419,-153.169852,0.00031682,7]
[341756248,1731209444429,-151.0,0.00031682,7]
[341756249,1731209444438,-151.0,0.00031682,7]
[341756250,1731209444447,-151.0,0.00031682,7]
[341756251,1731209444456,-151.0,0.00031682,7]
[341756252,1731209444465,-151.0,0.00031682,7]
[341756253,1731209444475,-155.520398,0.00031682,7]
[341756254,1731209444484,-194.430765,0.00031682,7]
[341756255,1731209444494,-194.430761,0.00031682,7]
[341756256,1731209444507,-151.611924,0.00031682,7]
[341756257,1731209444516,-167.767165,0.00031682,7]
[341756258,1731209444526,-191.181097,0.00031682,7]
[341756259,1731209444536,-151.0,0.00031682,7]
[341756260,1731209444546,-151.0,0.00031682,7]
[341756261,1731209444556,-151.0,0.00031682,7]
[341756262,1731209444567,-154.847956,0.00031682,7]
[341756263,1731209444577,-155.246859,0.00031682,7]
[341756264,1731209444587,-151.0,0.00031682,7]
[341756265,1731209444597,-151.0,0.00031682,7]
[341756266,1731209444606,-151.0,0.00031682,7]
[341756267,1731209444616,-151.0,0.00031682,7]
[341756268,1731209444626,-151.0,0.00031682,7]
[341756269,1731209444635,-151.0,0.00031682,7]
[341756270,1731209444645,-151.0,0.00031682,7]
[341756271,1731209444654,-151.0,0.00031682,7]
[341756272,1731209444664,-151.0,0.00031682,7]
[341756273,1731209444675,-151.0,0.00031682,7]
[341756274,1731209444684,-151.0,0.00031682,7]
[341756275,1731209444693,-151.0,0.00031682,7]
[341756276,1731209444703,-151.0,0.00031682,7]
[341756277,1731209444713,-177.241006,0.00031682,7]
[341756278,1731209444722,-151.0,0.00031682,7]
[341756279,1731209444732,-151.0,0.00031682,7]
[341756280,1731209444741,-151.0,0.00031682,7]
[341756281,1731209444751,-151.0,0.00031682,7]
[341756282,1731209444761,-174.97862776,0.00031682,7]
[341756283,1731209444770,-151.0,0.00031682,2]
[341756284,1731209444780,-151.0,0.00031682,2]
[341756285,1731209444789,-151.0,0.00031682,2]
[341756286,1731209444798,-151.0,0.00031682,2]
[341756287,1731209444808,-151.0,0.00031682,2]
[341756288,1731209444819,-151.0,0.00031682,2]
[341756289,1731209444828,-151.0,0.00031682,2]
[341756290,1731209444838,-151.0,0.00031682,2]
[341756291,1731209444847,-151.0,0.00031682,2]
[341756292,1731209444857,-196.131497,0.00031682,2]
[341756293,1731209444866,-151.0,0.00031682,7]
[341756294,1731209444875,-182.119615,0.00031682,7]
[341756295,1731209444884,-160.042493,0.00031682,7]
[341756296,1731209444893,-160.042493,0.00031682,7]
[341756297,1731209444902,-160.042493,0.00031682,7]
[341756298,1731209444911,-160.042493,0.00031682,7]
[341756299,1731209444920,-160.042493,0.00031682,7]
[341756300,1731209444929,-160.042493,0.00031682,7]
[341756301,1731209444938,-160.042493,0.00031682,7]
[341756302,1731209444948,-160.042493,0.00031682,7]
[341756303,1731209444957,-160.042493,0.00031682,7]
[341756304,1731209444966,-160.042493,0.00031682,7]
[341756305,1731209444975,-160.042493,0.00031682,7]
[341756306,1731209444984,-160.042493,0.00031682,7]
[341756307,1731209444993,-160.042493,0.00031682,7]
[341756308,1731209445002,-160.042493,0.00031682,7]
[341756309,1731209445011,-160.042493,0.00031682,7]
[341756310,1731209445021,-160.042493,0.00031682,7]
[341756311,1731209445031,-160.042493,0.00031682,7]
[341756312,1731209445040,-160.042493,0.00031682,7]
[341756313,1731209445050,-160.042493,0.00031682,7]
[341756314,1731209445059,-160.042492,0.00031682,7]
[341756315,1731209445071,-151.0,0.00031682,7]
[341756316,1731209445080,-151.0,0.00031682,7]
[341756317,1731209445089,-151.0,0.00031682,7]
[341756318,1731209445099,-151.0,0.00031682,7]
[341756319,1731209445108,-287.20341,0.00031682,7]
[341756320,1731209445118,-151.0,0.00031682,7]
[341756321,1731209445127,-151.0,0.00031682,7]
[341756322,1731209445136,-191.783028,0.00031682,7]
[341756323,1731209445145,-151.0,0.00031682,7]
[341756324,1731209445154,-151.0,0.00031682,7]
[341756325,1731209445165,-636.761893,0.00031682,7]
[341756326,1731209445175,-636.761893,0.00031682,7]
[341756327,1731209445184,-636.761893,0.00031682,7]
[341756328,1731209445193,-636.761893,0.00031682,7]
[341756329,1731209445203,-636.761893,0.00031682,7]
[341756330,1731209445212,-636.761893,0.00031682,7]
[341756331,1731209445221,-636.761893,0.00031682,7]
[341756332,1731209445231,-636.761893,0.00031682,7]
[341756333,1731209445240,-636.761893,0.00031682,7]
[341756334,1731209445249,-636.761893,0.00031682,7]
[341756335,1731209445259,-636.761893,0.00031682,7]
[341756336,1731209445268,-636.761893,0.00031682,7]
[341756337,1731209445279,-636.761893,0.00031682,7]
[341756338,1731209445288,-636.761893,0.00031682,7]
[341756339,1731209445298,-636.761893,0.00031682,7]
[341756340,1731209445307,-636.761893,0.00031682,7]
[341756341,1731209445318,-636.761893,0.00031682,7]
[341756342,1731209445328,-636.761893,0.00031682,7]
[341756343,1731209445338,-636.761893,0.00031682,7]
[341756344,1731209445347,-636.761901,0.00031682,7]
[341756345,1731209445357,-151.0,0.00031682,7]
[341756346,1731209445366,-562.968526,0.00031682,7]
[341756347,1731209445376,-562.968526,0.00031682,7]
[341756348,1731209445385,-562.968526,0.00031682,7]
[341756349,1731209445395,-562.968526,0.00031682,7]
[341756350,1731209445404,-562.968526,0.00031682,7]
[341756351,1731209445414,-562.968526,0.00031682,7]
[341756352,1731209445423,-562.968526,0.00031682,7]
[341756353,1731209445433,-562.968526,0.00031682,7]
[341756354,1731209445443,-562.968526,0.00031682,7]
[341756355,1731209445453,-562.968526,0.00031682,7]
[341756356,1731209445462,-562.968526,0.00031682,7]
[341756357,1731209445471,-562.968526,0.00031682,7]
[341756358,1731209445480,-562.968526,0.00031682,7]
[341756359,1731209445489,-562.968526,0.00031682,7]
[341756360,1731209445501,-562.968526,0.00031682,7]
[341756361,1731209445511,-562.968526,0.00031682,7]
[341756362,1731209445520,-562.968526,0.00031682,7]
[341756363,1731209445530,-562.968526,0.00031682,7]
[341756364,1731209445539,-562.968526,0.00031682,7]
[341756365,1731209445549,-562.968525,0.00031682,7]
[341756366,1731209445559,-151.0,0.00031682,7]
[341756367,1731209445569,-207.109385,0.00031682,7]
[341756368,1731209445580,-157.530062,0.00031682,7]
[341756369,1731209445590,-151.0,0.00031682,7]
[341756370,1731209445600,-151.0,0.00031682,7]
[341756371,1731209445610,-151.0,0.00031682,7]
[341756372,1731209445619,-151.0,0.00031682,7]
[341756373,1731209445628,-151.0,0.00031682,7]
[341756374,1731209445638,-151.0,0.00031682,7]
[341756375,1731209445647,-151.0,0.00031682,7]
[341756376,1731209445656,-151.0,0.00031682,7]
[341756377,1731209445668,-151.0,0.00031682,7]
[341756378,1731209445677,-151.0,0.00031682,7]
[341756379,1731209445687,-151.0,0.00031682,7]
[341756380,1731209445698,-151.0,0.00031682,7]
[341756381,1731209445707,-261.676992,0.00031682,7]
[341756382,1731209445716,-153.28147,0.00031682,7]
[341756383,1731209445726,-151.0,0.00031683,7]
[341756384,1731209445736,-151.0,0.00031683,7]
[341756385,1731209445747,-151.0,0.00031683,7]
[341756386,1731209445756,-151.0,0.00031683,7]
[341756387,1731209445765,-151.0,0.00031683,7]
[341756388,1731209445775,-151.0,0.00031683,7]
[341756389,1731209445784,-164.261892,0.00031683,7]
[341756390,1731209445794,-261.040232,0.00031683,7]
[341756391,1731209445803,-151.0,0.00031683,7]
[341756392,1731209445813,-151.0,0.00031683,7]
[341756393,1731209445823,-151.0,0.00031683,7]
[341756394,1731209445832,-174.028787,0.00031683,7]
[341756395,1731209445841,-151.0,0.00031683,7]
[341756396,1731209445851,-151.0,0.00031683,7]
[341756397,1731209445860,-151.0,0.00031683,7]
[341756398,1731209445869,-151.0,0.00031683,7]
[341756399,1731209445879,-151.0,0.00031683,7]
[341756400,1731209445888,-151.0,0.00031683,7]
[341756401,1731209445898,-151.0,0.00031683,7]
[341756402,1731209445907,-151.0,0.00031683,7]
[341756403,1731209445918,-151.0,0.00031683,7]
[341756404,1731209445928,-163.317588,0.00031683,7]
[341756405,1731209445937,-151.0,0.00031683,7]
[341756406,1731209445947,-154.449221,0.00031683,7]
[341756407,1731209445957,-166.070975,0.00031683,7]
[341756408,1731209445967,-480045.63506517,0.00031683,10]
[341756409,1731209446060,-9141.65144546,0.00031683,10]
[341756410,1731209446073,-1846.64900556,0.00031683,10]
[341756411,1731209446220,-214.66795243,0.00022432,2]
[341756412,1731209446230,-529.0,0.00031536,2]
[341756413,1731209446240,-1505.00053101,0.00031683,10]
[341756414,1731209446252,-1076.683425,0.00031683,10]
[341756415,1731209446268,-4246.17382282,0.00031683,10]
[341756432,1731209861497,607.63888889,0.00020844,2]
[341756434,1731209968757,163.221241,0.00013973,2]
[341756464,1731210236838,607.63888889,0.00020844,2]
[341756499,1731210611481,607.63888889,0.00020844,2]
[341756521,1731210632890,-163.221241,0.00023435,2]
[341756523,1731210632901,-152.0,0.00027559,2]
[341756525,1731210632911,-320.97304959,0.00027649,2]
[341756527,1731210632921,-300.0,0.00027725,2]
[341756528,1731210632931,-607.63888889,0.00027725,2]
[341756530,1731210632942,-526.0613808,0.00027726,2]
[341756532,1731210632952,-3000.0,0.00027726,2]
[341756534,1731210632962,-1563.356374,0.00027749,2]
[341756535,1731210632972,-1105.4224815,0.00027758,2]
[341756536,1731210632981,-273.293299,0.00027829,2]
[341756537,1731210632990,-250.0,0.00027872,2]
[341756538,1731210632999,-320.97304957,0.00028174,2]
[341756539,1731210633008,-1563.356374,0.00028434,2]
[341756540,1731210633018,-170.90816,0.00028519,2]
[341756541,1731210633028,-324.108154,0.00028679,2]
[341756542,1731210633038,-324.108154,0.00028686,2]
[341756543,1731210633048,-324.108154,0.00028694,2]
[341756544,1731210633057,-320.97304957,0.00028699,2]
[341756545,1731210633067,-324.108154,0.00028702,2]
[341756546,1731210633076,-324.108154,0.00028709,2]
[341756547,1731210633085,-324.108154,0.00028717,2]
[341756548,1731210633096,-324.108154,0.00028724,2]
[341756549,1731210633106,-324.108154,0.00028732,2]
[341756550,1731210633115,-324.108154,0.00028739,2]
[341756551,1731210633124,-324.108154,0.00028747,2]
[341756552,1731210633133,-324.108154,0.00028754,2]
[341756553,1731210633143,-324.108154,0.00028762,2]
[341756554,1731210633152,-324.108154,0.00028769,2]
[341756555,1731210633161,-324.108154,0.00028777,2]
[341756556,1731210633171,-324.108154,0.00028784,2]
[341756557,1731210633180,-324.108154,0.00028792,2]
[341756558,1731210633190,-324.108154,0.00028799,2]
[341756559,1731210633199,-189.85296083,0.00028799,20]
[341756560,1731210633209,-324.108154,0.00028807,2]
[341756561,1731210633219,-324.108154,0.00028815,2]
[341756562,1731210633229,-324.108154,0.00028822,2]
[341756563,1731210633238,-780.59602424,0.00029119,2]
[341756571,1731210638745,-782.76034976,0.00029119,2]
[341756572,1731210638754,-161.88158503,0.00029914,5]
[341756573,1731210638763,-500.0,0.00030135,2]
[341756574,1731210638773,-504.26555161,0.00030136,2]
[341756575,1731210638783,-500.0,0.00030136,7]
[341756576,1731210638793,-500.0,0.00030136,2]
[341756577,1731210638802,-328.67,0.00030136,2]
[341756578,1731210638811,-434.14,0.00030136,2]
[341756579,1731210638821,-158.07,0.00030136,2]
[341756580,1731210638830,-500.0,0.00030136,2]
[341756581,1731210638839,-500.0,0.00030136,2]
[341756582,1731210638850,-500.0,0.00030136,2]
[341756583,1731210638861,-1598.61,0.00030136,2]
[341756584,1731210638871,-953.34,0.00030136,2]
[341756585,1731210638880,-507.05766419,0.00030136,2]
[341756586,1731210638889,-505.88226907,0.00030136,2]
[341756587,1731210638898,-500.0,0.00030136,2]
[341756588,1731210638908,-510.57580351,0.00030136,2]
[341756589,1731210638917,-493.94080974,0.00030136,2]
[341756590,1731210638926,-510.33394181,0.00030136,2]
[341756591,1731210638938,-517.32901684,0.00030136,2]
[341756592,1731210638947,-502.49830277,0.00030136,2]
[341756593,1731210638957,-535.78148636,0.00030136,2]
[341756594,1731210638966,-798.27,0.00030136,2]
[341756595,1731210638976,-500.0,0.00030136,2]
[341756596,1731210638985,-1134.67,0.00030136,2]
[341756597,1731210638995,-500.0,0.00030136,2]
[341756598,1731210639004,-199.32,0.00030136,2]
[341756599,1731210639013,-751.01,0.00030136,2]
[341756600,1731210639023,-522.03,0.00030136,2]
[341756601,1731210639032,-500.0,0.00030136,120]
[341756602,1731210639043,-510.56698528,0.0003041,2]
[341756603,1731210639052,-378.44259498,0.0003041,2]
[341756604,1731210639061,-1598.61,0.0003041,2]
[341756605,1731210639071,-953.34,0.0003041,2]
[341756606,1731210639080,-798.27,0.0003041,2]
[341756607,1731210639089,-500.0,0.0003041,2]
[341756608,1731210639100,-1134.67,0.0003041,2]
[341756609,1731210639109,-500.0,0.0003041,2]
[341756610,1731210639118,-751.01,0.0003041,2]
[341756611,1731210639128,-522.03,0.0003041,2]
[341756612,1731210639137,-500.0,0.0003041,120]
[341756613,1731210639146,-641.82074172,0.0003041,7]
[341756614,1731210639156,-1598.61,0.00030684,2]
[341756615,1731210639165,-953.34,0.00030684,2]
[341756616,1731210639174,-798.27,0.00030684,2]
[341756617,1731210639183,-500.0,0.00030684,2]
[341756618,1731210639193,-1134.67,0.00030684,2]
[341756619,1731210639202,-500.0,0.00030684,2]
[341756620,1731210639211,-751.01,0.00030684,2]
[341756621,1731210639220,-522.03,0.00030684,2]
[341756622,1731210639230,-500.0,0.00030684,120]
[341756623,1731210639240,-158.079,0.0003091,10]
[341756624,1731210639249,-1598.61,0.00030958,2]
[341756625,1731210639258,-953.34,0.00030958,2]
[341756626,1731210639268,-798.27,0.00030958,2]
[341756627,1731210639278,-500.0,0.00030958,2]
[341756628,1731210639289,-1134.67,0.00030958,2]
[341756629,1731210639299,-500.0,0.00030958,2]
[341756630,1731210639308,-751.01,0.00030958,2]
[341756631,1731210639318,-522.03,0.00030958,2]
[341756632,1731210639328,-500.0,0.00030958,120]
[341756633,1731210639337,-500.0,0.00031232,10]
[341756634,1731210639347,-1598.61,0.00031232,2]
[341756635,1731210639356,-953.34,0.00031232,2]
[341756636,1731210639366,-798.27,0.00031232,2]
[341756637,1731210639376,-500.0,0.00031232,2]
[341756638,1731210639386,-1134.67,0.00031232,2]
[341756639,1731210639395,-500.0,0.00031232,2]
[341756640,1731210639405,-751.01,0.00031232,2]
[341756641,1731210639414,-522.03,0.00031232,2]
[341756642,1731210639424,-249.56,0.000315,31]
[341756643,1731210639544,-249.56,0.000315,31]
[341756644,1731210639554,-249.56,0.000315,31]
[341756645,1731210639564,-249.56,0.000315,31]
[341756646,1731210639573,-249.56,0.000315,31]
[341756647,1731210639583,-249.56,0.000315,31]
[341756648,1731210639593,-249.56,0.000315,31]
[341756649,1731210639602,-249.56,0.000315,31]
[341756650,1731210639611,-249.56,0.000315,31]
[341756651,1731210639620,-249.56,0.000315,31]
[341756652,1731210639629,-249.56,0.000315,31]
[341756653,1731210639638,-249.56,0.000315,31]
[341756654,1731210639647,-500.0,0.00031505,2]
[341756655,1731210639656,-1598.61,0.00031506,2]
[341756656,1731210639665,-953.34,0.00031506,2]
[341756657,1731210639674,-798.27,0.00031506,2]
[341756658,1731210639683,-500.0,0.00031506,2]
[341756659,1731210639693,-1134.67,0.00031506,2]
[341756660,1731210639702,-500.0,0.00031506,2]
[341756661,1731210639712,-751.01,0.00031506,2]
[341756663,1731210639721,-522.03,0.00031506,2]
[341756665,1731210639731,-1000.0,0.00031582,2]
[341756666,1731210639740,-500.0,0.000316,36]
[341756668,1731210639749,-151.250681,0.000316,2]
[341756670,1731210639758,-8695.3108533,0.00031641,31]
[341756672,1731210639767,-5000.0,0.00031641,33]
[341756674,1731210639777,-5000.0,0.00031641,31]
[341756675,1731210639785,-424.74,0.0003167,3]
[341756676,1731210639796,-203.75,0.00031672,2]
[341756677,1731210639806,-160.38598261,0.00031673,5]
[341756678,1731210639815,-486.70395308,0.00031673,5]
[341756679,1731210639824,-500.0,0.00031673,5]
[341756680,1731210639834,-152.319636,0.00031679,7]
[341756681,1731210639843,-151.0,0.00031679,7]
[341756682,1731210639853,-151.0,0.00031679,7]